fUSD/lending_fUSD_20250607
["ID","MTS","AMOUNT","RATE_DAILY","PERIOD"]
[364902896,1749287448188,-582.02,0.00035616,120]
[364902897,1749287448197,-582.02,0.00035616,120]
[364902898,1749287448206,-582.02,0.00035616,120]
[364902899,1749287448216,-582.02,0.00035616,120]
[364902900,1749287448225,-582.02,0.00035616,120]
[364902901,1749287448236,-582.02,0.00035616,120]
[364902902,1749287448246,-582.02,0.00035616,120]
[364902903,1749287448255,-582.02,0.00035616,120]
[364902904,1749287448264,-582.02,0.00035616,120]
[364902905,1749287448275,-480.0,0.00035616,120]
[364902906,1749287448284,-480.0,0.00035616,30]
[364902907,1749287448293,-480.0,0.00035616,30]
[364902908,1749287448302,-480.0,0.00035616,30]
[364902909,1749287448312,-480.0,0.00035616,30]
[364902910,1749287448322,-480.0,0.00035616,60]
[364902911,1749287448331,-480.0,0.00035616,60]
[364902912,1749287448341,-480.0,0.00035616,60]
[364902913,1749287448351,-480.0,0.00035616,60]
[364902914,1749287448360,-480.0,0.00035616,60]
[364902915,1749287448370,-480.0,0.00035616,60]
[364902916,1749287448379,-480.0,0.00035616,60]
[364902917,1749287448388,-480.0,0.00035616,60]
[364902918,1749287448398,-480.0,0.00035616,60]
[364902919,1749287448407,-1275.71171901,0.00035616,2]
[364902920,1749287448418,-429.11,0.0003564,30]
[364902921,1749287448427,-266.26250959,0.000357,4]
[364902922,1749287448436,-55971.88,0.000357,14]
[364902923,1749287448446,-205.0,0.00035748,2]
[364902924,1749287448455,-5222.35,0.000358,14]
[364902925,1749287448465,-1000.0,0.000359,13]
[364902926,1749287448474,-480.0,0.00035916,60]
[364902927,1749287448483,-1899.59,0.00035941,2]
[364902928,1749287448492,-500.0,0.00035947,2]
[364902929,1749287448501,-500.0,0.00035947,2]
[364902930,1749287448511,-500.0,0.00035947,2]
[364902932,1749287448520,-500.0,0.00035947,2]
[364902934,1749287448530,-500.0,0.00035947,2]
[364902936,1749287448539,-500.0,0.00035947,2]
[364902938,1749287448548,-500.0,0.00035947,2]
[364902940,1749287448558,-500.0,0.00035947,2]
[364902942,1749287448567,-500.0,0.00035947,2]
[364902944,1749287448577,-500.0,0.00035947,2]
[364902946,1749287448587,-500.0,0.00035947,2]
[364902948,1749287448596,-500.0,0.00035947,2]
[364902950,1749287448606,-500.0,0.00035947,2]
[364902952,1749287448615,-500.0,0.00035947,2]
[364902954,1749287448625,-707.0,0.00035947,2]
[364902956,1749287448634,-500.0,0.00035947,2]
[364902957,1749287448644,-500.0,0.00035947,2]
[364902958,1749287448653,-500.0,0.00035947,2]
[364902959,1749287448662,-500.0,0.00035947,2]
[364902960,1749287448672,-500.0,0.00035947,2]
[364902961,1749287448681,-500.0,0.00035947,2]
[364902962,1749287448691,-500.0,0.00035947,2]
[364902963,1749287448700,-500.0,0.00035947,2]
[364902964,1749287448710,-500.0,0.00035947,2]
[364902965,1749287448719,-500.0,0.00035947,2]
[364902966,1749287448729,-500.0,0.00035947,2]
[364902967,1749287448738,-500.0,0.00035947,2]
[364902968,1749287448750,-500.0,0.00035947,2]
[364902969,1749287448760,-500.0,0.00035947,2]
[364902970,1749287448771,-500.0,0.00035947,2]
[364902971,1749287448780,-500.0,0.00035947,2]
[364902972,1749287448791,-500.0,0.00035947,2]
[364902973,1749287448800,-500.0,0.00035947,2]
[364902974,1749287448811,-500.0,0.00035947,2]
[364902975,1749287448820,-500.0,0.00035947,2]
[364902976,1749287448830,-500.0,0.00035947,2]
[364902977,1749287448840,-500.0,0.00035947,2]
[364902978,1749287448850,-500.0,0.00035947,2]
[364902979,1749287448859,-500.0,0.00035947,2]
[364902980,1749287448869,-500.0,0.00035947,2]
[364902981,1749287448879,-500.0,0.00035947,2]
[364902982,1749287448890,-500.0,0.00035947,2]
[364902983,1749287448899,-500.0,0.00035947,2]
[364902984,1749287448909,-500.0,0.00035947,2]
[364902985,1749287448918,-500.0,0.00035947,2]
[364902986,1749287448928,-500.0,0.00035947,2]
[364902987,1749287448943,-500.0,0.00035947,2]
[364902988,1749287448957,-500.0,0.00035947,2]
[364902989,1749287448970,-500.0,0.00035947,2]
[364902990,1749287448979,-500.0,0.00035947,2]
[364902991,1749287448989,-500.0,0.00035947,2]
[364902992,1749287448998,-500.0,0.00035947,2]
[364902993,1749287449007,-500.0,0.00035947,2]
[364902994,1749287449017,-500.0,0.00035947,2]
[364902995,1749287449026,-500.0,0.00035947,2]
[364902996,1749287449035,-500.0,0.00035947,2]
[364902997,1749287449045,-500.0,0.00035947,2]
[364902998,1749287449054,-500.0,0.00035947,2]
[364902999,1749287449064,-500.0,0.00035947,2]
[364903000,1749287449073,-500.0,0.00035947,2]
[364903001,1749287449083,-500.0,0.00035947,2]
[364903002,1749287449093,-500.0,0.00035947,2]
[364903003,1749287449102,-500.0,0.00035947,2]
[364903004,1749287449111,-500.0,0.00035947,2]
[364903005,1749287449121,-500.0,0.00035947,2]
[364903006,1749287449131,-500.0,0.00035947,2]
[364903007,1749287449140,-500.0,0.00035947,2]
[364903008,1749287449150,-500.0,0.00035947,2]
[364903009,1749287449160,-500.0,0.00035947,2]
[364903010,1749287449170,-500.0,0.00035947,2]
[364903011,1749287449180,-500.0,0.00035947,2]
[364903012,1749287449190,-500.0,0.00035947,2]
[364903013,1749287449199,-500.0,0.00035947,2]
[364903014,1749287449209,-500.0,0.00035947,2]
[364903015,1749287449219,-500.0,0.00035947,2]
[364903016,1749287449229,-500.0,0.00035947,2]
[364903017,1749287449239,-500.0,0.00035947,2]
[364903018,1749287449248,-500.0,0.00035947,2]
[364903019,1749287449258,-500.0,0.00035947,2]
[364903020,1749287449268,-500.0,0.00035947,2]
[364903021,1749287449278,-500.0,0.00035947,2]
[364903022,1749287449288,-500.0,0.00035947,2]
[364903023,1749287449297,-500.0,0.00035947,2]
[364903024,1749287449307,-500.0,0.00035947,2]
[364903025,1749287449318,-500.0,0.00035947,2]
[364903026,1749287449327,-500.0,0.00035947,2]
[364903027,1749287449337,-500.0,0.00035947,2]
[364903028,1749287449347,-500.0,0.00035947,2]
[364903029,1749287449357,-500.0,0.00035947,2]
[364903030,1749287449367,-500.0,0.00035947,2]
[364903031,1749287449378,-500.0,0.00035947,2]
[364903032,1749287449388,-500.0,0.00035947,2]
[364903033,1749287449398,-500.0,0.00035947,2]
[364903034,1749287449408,-500.0,0.00035947,2]
[364903035,1749287449417,-500.0,0.00035947,2]
[364903036,1749287449427,-500.0,0.00035947,2]
[364903037,1749287449489,-500.0,0.00035947,2]
[364903038,1749287449499,-500.0,0.00035947,2]
[364903039,1749287449508,-500.0,0.00035947,2]
[364903040,1749287449517,-500.0,0.00035947,2]
[364903041,1749287449526,-500.0,0.00035947,2]
[364903042,1749287449535,-500.0,0.00035947,2]
[364903043,1749287449545,-500.0,0.00035947,2]
[364903044,1749287449554,-500.0,0.00035947,2]
[364903045,1749287449563,-500.0,0.00035947,2]
[364903046,1749287449574,-500.0,0.00035947,2]
[364903047,1749287449583,-500.0,0.00035947,2]
[364903048,1749287449593,-500.0,0.00035947,2]
[364903049,1749287449603,-500.0,0.00035947,2]
[364903050,1749287449612,-500.0,0.00035947,2]
[364903051,1749287449621,-500.0,0.00035947,2]
[364903052,1749287449631,-500.0,0.00035947,2]
[364903053,1749287449640,-500.0,0.00035947,2]
[364903054,1749287449649,-500.0,0.00035947,2]
[364903055,1749287449659,-500.0,0.00035947,2]
[364903056,1749287449668,-871.0,0.00035947,2]
[364903057,1749287449678,-200.0,0.00035955,10]
[364903058,1749287449688,-151.0,0.00036,7]
[364903059,1749287449696,-291.843249,0.00036,7]
[364903060,1749287449705,-291.843249,0.00036,7]
[364903061,1749287449714,-151.0,0.00036,7]
[364903062,1749287449723,-151.0,0.00036,7]
[364903063,1749287449733,-153.0,0.00036,30]
[364903064,1749287449743,-1479.41,0.00036,5]
[364903065,1749287449753,-2000.0,0.00036028,60]
[364903066,1749287449763,-150.0,0.00036049,2]
[364903067,1749287449774,-3796.7,0.00036064,2]
[364903068,1749287449783,-582.02,0.00036164,120]
[364903069,1749287449793,-200.0,0.00036164,2]
[364903070,1749287449805,-500.0,0.00036246,60]
[364903071,1749287449816,-500.0,0.00036246,60]
[364903072,1749287449826,-500.0,0.00036246,60]
[364903073,1749287449835,-150.0,0.00036246,60]
[364903074,1749287449846,-500.0,0.00036246,60]
[364903075,1749287449856,-151.14102347,0.00036246,60]
[364903076,1749287449865,-500.0,0.00036246,60]
[364903077,1749287449874,-500.0,0.00036246,60]
[364903078,1749287449883,-150.0,0.00036246,60]
[364903079,1749287449893,-150.0,0.00036246,60]
[364903080,1749287449903,-500.0,0.00036246,60]
[364903081,1749287449913,-150.0,0.00036246,60]
[364903082,1749287449922,-150.0,0.00036246,60]
[364903083,1749287449933,-150.0,0.00036246,60]
[364903084,1749287449942,-150.0,0.00036246,60]
[364903085,1749287449952,-150.0,0.00036246,60]
[364903086,1749287449962,-155.45224996,0.00036246,60]
[364903087,1749287449971,-150.0,0.00036246,60]
[364903088,1749287449980,-150.0,0.00036246,60]
[364903089,1749287449990,-150.0,0.00036246,60]
[364903090,1749287449999,-150.0,0.00036246,2]
[364903091,1749287450008,-150.0,0.00036246,60]
[364903092,1749287450018,-150.0,0.00036246,60]
[364903093,1749287450028,-500.0,0.00036246,60]
[364903094,1749287450038,-150.0,0.00036246,60]
[364903095,1749287450048,-150.0,0.00036246,60]
[364903096,1749287450057,-150.96943052,0.00036246,60]
[364903097,1749287450067,-150.0,0.00036246,60]
[364903098,1749287450076,-150.0,0.00036246,60]
[364903099,1749287450087,-500.0,0.00036273,60]
[364903100,1749287450109,-500.0,0.00036273,60]
[364903101,1749287450120,-500.0,0.00036273,60]
[364903102,1749287450130,-150.0,0.00036273,60]
[364903103,1749287450141,-500.0,0.00036273,60]
[364903104,1749287450151,-500.0,0.00036273,60]
[364903105,1749287450161,-500.0,0.00036273,60]
[364903106,1749287450170,-201.6572608,0.00036273,60]
[364903107,1749287450180,-166.85657013,0.00036273,60]
[364903108,1749287450190,-500.0,0.00036273,60]
[364903109,1749287450199,-150.0,0.00036273,60]
[364903110,1749287450209,-150.0,0.00036273,60]
[364903111,1749287450219,-206.02997179,0.00036273,60]
[364903112,1749287450229,-150.0,0.00036273,60]
[364903113,1749287450239,-150.0,0.00036273,60]
[364903114,1749287450249,-150.0,0.00036273,2]
[364903115,1749287450259,-150.0,0.00036273,60]
[364903116,1749287450270,-150.0,0.00036273,60]
[364903117,1749287450279,-500.0,0.00036273,60]
[364903118,1749287450290,-150.0,0.00036273,60]
[364903119,1749287450300,-634.00419138,0.00036291,9]
[364903120,1749287450310,-500.0,0.00036301,60]
[364903121,1749287450320,-500.0,0.00036301,60]
[364903122,1749287450329,-500.0,0.00036301,60]
[364903123,1749287450340,-255.00578496,0.00036301,60]
[364903124,1749287450350,-500.0,0.00036301,60]
[364903125,1749287450359,-500.0,0.00036301,60]
[364903126,1749287450370,-500.0,0.00036301,60]
[364903127,1749287450380,-165.44350681,0.00036301,60]
[364903128,1749287450390,-200.0,0.00036301,60]
[364903129,1749287450399,-200.0,0.00036301,60]
[364903130,1749287450409,-200.0,0.00036301,60]
[364903131,1749287450419,-200.0,0.00036301,60]
[364903132,1749287450429,-200.0,0.00036301,2]
[364903133,1749287450438,-200.0,0.00036301,60]
[364903134,1749287450448,-150.0,0.00036301,60]
[364903135,1749287450458,-500.0,0.00036301,60]
[364903136,1749287450469,-200.0,0.00036301,60]
[364903137,1749287450479,-4000.0,0.00036326,4]
[364903138,1749287450489,-500.0,0.00036328,60]
[364903139,1749287450499,-463.97218168,0.00036328,60]
[364903140,1749287450508,-500.0,0.00036328,60]
[364903141,1749287450517,-500.0,0.00036328,60]
[364903142,1749287450529,-500.0,0.00036328,60]
[364903143,1749287450546,-500.0,0.00036328,60]
[364903144,1749287450556,-150.0,0.00036328,60]
[364903145,1749287450566,-171.0,0.00036328,60]
[364903146,1749287450576,-500.0,0.00036356,60]
[364903147,1749287450586,-500.0,0.00036356,60]
[364903148,1749287450596,-500.0,0.00036356,60]
[364903149,1749287450605,-500.0,0.00036356,60]
[364903150,1749287450615,-500.0,0.00036356,60]
[364903151,1749287450625,-150.0,0.00036356,60]
[364903152,1749287450635,-500.0,0.00036383,60]
[364903153,1749287450644,-500.0,0.00036383,60]
[364903154,1749287450654,-500.0,0.00036383,60]
[364903155,1749287450663,-500.0,0.00036383,60]
[364903156,1749287450673,-500.0,0.00036383,60]
[364903157,1749287450683,-250.0,0.00036383,60]
[364903158,1749287450693,-1000.0,0.000364,2]
[364903159,1749287450704,-55971.88,0.000364,14]
[364903160,1749287450714,-454.88450249,0.0003641,60]
[364903161,1749287450724,-500.0,0.0003641,60]
[364903162,1749287450733,-500.0,0.0003641,60]
[364903163,1749287450743,-500.0,0.0003641,60]
[364903164,1749287450753,-500.0,0.0003641,60]
[364903165,1749287450767,-500.0,0.00036438,60]
[364903166,1749287450777,-500.0,0.00036438,60]
[364903167,1749287450787,-500.0,0.00036438,60]
[364903168,1749287450798,-589.93214716,0.00036438,60]
[364903169,1749287450809,-500.0,0.00036465,60]
[364903170,1749287450819,-500.0,0.00036465,60]
[364903171,1749287450830,-500.0,0.00036465,60]
[364903172,1749287450840,-500.0,0.00036493,60]
[364903173,1749287450850,-500.0,0.00036493,60]
[364903174,1749287450860,-500.0,0.00036493,60]
[364903175,1749287450870,-500.0,0.0003652,60]
[364903176,1749287450881,-500.0,0.0003652,60]
[364903177,1749287450891,-500.0,0.0003652,60]
[364903178,1749287450903,-611.0378752,0.00036521,34]
[364903179,1749287450913,-500.0,0.00036547,60]
[364903180,1749287450923,-213.09230434,0.00036547,60]
[364903181,1749287450933,-500.0,0.00036547,60]
[364903182,1749287450944,-500.0,0.00036575,60]
[364903183,1749287450955,-500.0,0.00036575,60]
[364903184,1749287450965,-500.0,0.00036602,60]
[364903185,1749287450980,-329.8693377,0.00036602,60]
[364903186,1749287450990,-481.04818514,0.0003663,60]
[364903187,1749287451000,-296.44,0.00036752,2]
[364903188,1749287451010,-205.0,0.00036759,4]
[364903189,1749287451020,-150.0,0.0003677,2]
[364903190,1749287451030,-151.0,0.000368,7]
[364903191,1749287451041,-151.0,0.000368,7]
[364903192,1749287451051,-291.843249,0.000368,7]
[364903193,1749287451061,-291.843249,0.000368,7]
[364903194,1749287451071,-151.0,0.000368,7]
[364903195,1749287451081,-151.0,0.000368,7]
[364903196,1749287451091,-386.5325,0.00036888,7]
[364903197,1749287451101,-5222.35,0.00037,14]
[364903198,1749287451111,-153.0,0.00037,30]
[364903199,1749287451122,-4000.0,0.00037061,4]
[364903200,1749287451132,-1641.34266332,0.00037259,2]
[364903201,1749287451142,-944.0,0.00037259,2]
[364903202,1749287451151,-801.0,0.00037259,2]
[364903203,1749287451161,-636.0,0.00037259,2]
[364903204,1749287451171,-2000.0,0.00037259,2]
[364903205,1749287451180,-1274.0,0.00037259,2]
[364903206,1749287451190,-589.0,0.00037259,2]
[364903207,1749287451200,-557.0,0.00037259,2]
[364903208,1749287451210,-926.0,0.00037259,2]
[364903209,1749287451219,-1250.292,0.00037259,2]
[364903210,1749287451229,-155.0,0.00037259,2]
[364903211,1749287451239,-4082.0,0.00037259,2]
[364903212,1749287451249,-600.0,0.0003726,2]
[364903213,1749287451259,-600.0,0.0003726,2]
[364903214,1749287451272,-599.08675092,0.0003726,2]
[364903215,1749287451283,-55971.88,0.000373,14]
[364903216,1749287451293,-16000.0,0.00037359,2]
[364903217,1749287451303,-150.0,0.00037408,120]
[364903218,1749287451313,-611.0378752,0.00037452,36]
[364903219,1749287451323,-150.0,0.00037491,2]
[364903220,1749287451333,-150.0,0.000375,2]
[364903221,1749287451343,-150.0,0.00037511,2]
[364903222,1749287451353,-51993.70300262,0.00037519,2]
[364903223,1749287451363,-150.0,0.00037543,2]
[364903224,1749287451373,-150.0,0.00037543,2]
[364903225,1749287451383,-150.0,0.00037554,2]
[364903226,1749287451393,-27280.74931046,0.00037578,2]
[364903227,1749287451403,-150.0,0.00037587,2]
[364903228,1749287451413,-150.0,0.00037597,2]
[364903229,1749287451428,-150.0,0.00037599,2]
[364903230,1749287451438,-150.0,0.00037631,2]
[364903231,1749287451448,-150.0,0.00037638,2]
[364903232,1749287451458,-150.0,0.00037638,2]
[364903233,1749287451468,-150.0,0.00037639,2]
[364903234,1749287451479,-150.0,0.00037689,2]
[364903235,1749287451489,-150.0,0.00037705,2]
[364903236,1749287451499,-150.0,0.00037743,2]
[364903237,1749287451509,-5005.48695,0.00037752,30]
[364903238,1749287451519,-1333.0,0.00037753,120]
[364903239,1749287451529,-150.0,0.0003776,2]
[364903240,1749287451539,-205.0,0.00037769,6]
[364903241,1749287451550,-150.0,0.00037789,2]
[364903242,1749287451562,-4000.0,0.00037796,4]
[364903243,1749287451572,-2000.0,0.000378,2]
[364903244,1749287451582,-150.0,0.00037855,2]
[364903245,1749287451592,-150.0,0.00037867,2]
[364903246,1749287451601,-150.0,0.00037881,2]
[364903247,1749287451612,-150.0,0.00037918,2]
[364903248,1749287451622,-1591.94,0.00037926,2]
[364903249,1749287451633,-1591.79,0.00037926,2]
[364903250,1749287451642,-150.0,0.00037972,2]
[364903251,1749287451652,-150.0,0.00037991,2]
[364903252,1749287451662,-480.0,0.00037999,60]
[364903253,1749287451672,-5017.19,0.00038,30]
[364903254,1749287451681,-153.0,0.00038,30]
[364903255,1749287451691,-163.0,0.00038,30]
[364903256,1749287451700,-150.0,0.00038001,2]
[364903257,1749287451709,-150.0,0.00038042,2]
[364903258,1749287451719,-150.0,0.00038067,2]
[364903259,1749287451729,-150.0,0.00038072,2]
[364903260,1749287451738,-150.0,0.00038087,2]
[364903261,1749287451747,-150.0,0.00038089,2]
[364903262,1749287451759,-150.0,0.00038107,2]
[364903263,1749287451772,-150.0,0.00038109,2]
[364903264,1749287451781,-150.0,0.00038121,2]
[364903265,1749287451791,-150.0,0.00038121,2]
[364903266,1749287451801,-296.44,0.00038122,2]
[364903267,1749287451813,-150.0,0.0003814,2]
[364903268,1749287451823,-150.0,0.00038159,2]
[364903269,1749287451832,-150.0,0.00038175,2]
[364903270,1749287451844,-150.0,0.00038202,2]
[364903271,1749287451854,-150.0,0.00038204,2]
[364903272,1749287451875,-1899.59,0.00038205,2]
[364903273,1749287451885,-150.0,0.00038207,2]
[364903274,1749287451897,-150.0,0.00038212,2]
[364903275,1749287451906,-150.0,0.00038218,2]
[364903276,1749287451917,-150.0,0.00038239,2]
[364903277,1749287451926,-150.0,0.00038259,2]
[364903278,1749287451935,-2000.0,0.00038299,2]
[364903279,1749287451947,-55971.88,0.000383,14]
[364903280,1749287451957,-150.0,0.00038323,2]
[364903281,1749287451969,-150.0,0.00038376,2]
[364903282,1749287451979,-150.0,0.00038382,2]
[364903283,1749287451989,-611.0378752,0.00038383,38]
[364903284,1749287452000,-150.0,0.00038387,2]
[364903285,1749287452010,-150.0,0.00038389,2]
[364903286,1749287452019,-150.0,0.00038391,2]
[364903287,1749287452029,-150.0,0.00038407,2]
[364903288,1749287452038,-150.0,0.00038425,2]
[364903289,1749287452048,-150.0,0.00038439,2]
[364903290,1749287452061,-150.0,0.00038485,2]
[364903291,1749287452070,-150.0,0.00038494,2]
[364903292,1749287452081,-5222.35,0.000385,14]
[364903293,1749287452092,-4000.0,0.0003853,8]
[364903294,1749287452101,-150.0,0.00038548,2]
[364903295,1749287452111,-150.0,0.00038551,2]
[364903296,1749287452121,-163.25,0.00038573,2]
[364903297,1749287452132,-163.25,0.00038573,2]
[364903298,1749287452142,-163.25,0.00038573,2]
[364903299,1749287452152,-150.0,0.00038585,2]
[364903300,1749287452162,-150.0,0.00038595,2]
[364903301,1749287452172,-163.0,0.0003863,90]
[364903302,1749287452182,-150.0,0.00038631,2]
[364903303,1749287452192,-150.0,0.00038632,2]
[364903304,1749287452202,-150.0,0.0003866,2]
[364903305,1749287452212,-150.0,0.00038664,2]
[364903306,1749287452221,-150.0,0.00038668,2]
[364903307,1749287452231,-582.02,0.00038672,120]
[364903308,1749287452241,-197.65281716,0.00038673,2]
[364903309,1749287452250,-150.0,0.00038673,2]
[364903310,1749287452260,-150.0,0.00038692,2]
[364903311,1749287452270,-150.0,0.00038701,2]
[364903312,1749287452280,-1855.77153938,0.00038711,2]
[364903313,1749287452291,-150.0,0.00038711,2]
[364903314,1749287452302,-150.0,0.0003872,2]
[364903315,1749287452312,-150.0,0.00038729,2]
[364903316,1749287452322,-150.0,0.00038751,2]
[364903317,1749287452332,-150.0,0.00038759,2]
[364903318,1749287452342,-150.0,0.00038769,2]
[364903319,1749287452352,-205.0,0.0003878,9]
[364903320,1749287452362,-150.0,0.00038791,2]
[364903321,1749287452372,-151.0,0.000388,14]
[364903322,1749287452383,-204.807093,0.000388,14]
[364903323,1749287452392,-291.843249,0.000388,14]
[364903324,1749287452402,-291.843249,0.000388,14]
[364903325,1749287452413,-151.0,0.000388,14]
[364903326,1749287452424,-151.0,0.000388,14]
[364903327,1749287452433,-151.0,0.000388,14]
[364903328,1749287452444,-151.0,0.000388,14]
[364903329,1749287452454,-150.0,0.00038828,2]
[364903330,1749287452464,-150.0,0.00038883,2]
[364903331,1749287452475,-150.0,0.00038885,2]
[364903332,1749287452485,-3478.7926,0.00038888,30]
[364903333,1749287452495,-150.0,0.00038892,2]
[364903334,1749287452506,-150.0,0.00038895,2]
[364903335,1749287452518,-55971.88,0.000389,14]
[364903336,1749287452528,-1300.0,0.000389,14]
[364903337,1749287452538,-150.0,0.00038904,2]
[364903338,1749287452547,-4889.10596286,0.00038924,11]
[364903339,1749287452557,-7000.0,0.0003893,2]
[364903340,1749287452566,-150.0,0.00038932,2]
[364903341,1749287452576,-150.0,0.00038933,2]
[364903342,1749287452586,-150.0,0.00038941,2]
[364903343,1749287452595,-150.0,0.00038975,2]
[364903344,1749287452605,-150.0,0.00038978,2]
[364903345,1749287452617,-4173.02488684,0.00039,120]
[364903346,1749287452629,-150.0,0.00039008,2]
[364903347,1749287452639,-150.0,0.00039012,2]
[364903348,1749287452650,-150.0,0.00039029,2]
[364903349,1749287452660,-150.0,0.00039055,2]
[364903350,1749287452669,-150.0,0.0003906,2]
[364903351,1749287452682,-150.0,0.00039081,2]
[364903352,1749287452692,-150.0,0.00039096,2]
[364903353,1749287452702,-150.0,0.00039106,2]
[364903354,1749287452712,-2000.0,0.00039128,3]
[364903355,1749287452722,-2000.0,0.00039128,3]
[364903356,1749287452732,-150.0,0.00039139,2]
[364903357,1749287452742,-150.0,0.00039163,2]
[364903358,1749287452752,-150.0,0.00039169,2]
[364903359,1749287452765,-150.0,0.00039172,2]
[364903360,1749287452775,-150.0,0.00039187,2]
[364903361,1749287452786,-480.0,0.00039224,60]
[364903362,1749287452796,-233.37972,0.00039225,2]
[364903363,1749287452808,-322.61797203,0.00039225,8]
[364903364,1749287452818,-150.0,0.00039235,2]
[364903365,1749287452829,-150.0,0.00039238,2]
[364903366,1749287452840,-150.0,0.00039238,2]
[364903367,1749287452850,-150.0,0.00039239,2]
[364903368,1749287452860,-7000.0,0.0003926,2]
[364903369,1749287452870,-150.0,0.00039262,2]
[364903370,1749287452880,-150.0,0.00039262,2]
[364903371,1749287452890,-4000.0,0.00039265,8]
[364903372,1749287452900,-350.0,0.00039286,120]
[364903373,1749287452911,-150.0,0.0003929,2]
[364903374,1749287452921,-341.14,0.00039296,2]
[364903375,1749287452932,-354.34,0.00039296,2]
[364903376,1749287452942,-708.6,0.00039296,2]
[364903377,1749287452952,-173.39,0.00039296,2]
[364903378,1749287452961,-354.34,0.00039296,2]
[364903379,1749287452971,-341.1,0.00039296,2]
[364903380,1749287452981,-354.34,0.00039296,2]
[364903381,1749287452991,-170.61,0.00039296,2]
[364903382,1749287453001,-341.22,0.00039296,2]
[364903383,1749287453011,-354.34,0.00039296,2]
[364903384,1749287453021,-170.34,0.00039296,2]
[364903385,1749287453031,-708.24,0.00039296,2]
[364903386,1749287453042,-354.34,0.00039296,2]
[364903387,1749287453052,-354.34,0.00039296,2]
[364903388,1749287453062,-1000.0,0.000393,7]
[364903389,1749287453072,-611.0378752,0.00039314,40]
[364903390,1749287453083,-150.0,0.00039319,2]
[364903391,1749287453097,-2989.0,0.00039319,42]
[364903392,1749287453107,-1385.3608954,0.00039319,2]
[364903393,1749287453117,-205.0,0.0003932,2]
[364903394,1749287453127,-205.0,0.0003932,2]
[364903395,1749287453137,-150.0,0.00039322,2]
[364903396,1749287453147,-2000.0,0.00039324,60]
[364903397,1749287453157,-582.02,0.00039324,120]
[364903398,1749287453167,-582.02,0.00039324,120]
[364903399,1749287453178,-582.02,0.00039324,120]
[364903400,1749287453188,-582.02,0.00039324,120]
[364903401,1749287453198,-582.02,0.00039324,120]
[364903402,1749287453208,-500.0,0.00039324,30]
[364903403,1749287453219,-1888.00000001,0.00039324,30]
[364903404,1749287453231,-500.0,0.00039324,30]
[364903405,1749287453242,-500.0,0.00039324,30]
[364903406,1749287453252,-500.0,0.00039324,31]
[364903407,1749287453262,-500.0,0.00039324,45]
[364903408,1749287453276,-500.0,0.00039324,31]